fUSD/lending_fUSD_20240214
["ID","MTS","AMOUNT","RATE_DAILY","PERIOD"]
[314010635,1707923500373,-500.0,0.00038356,7]
[314010636,1707923500383,-1290.94,0.00038356,7]
[314010637,1707923500396,-520.12,0.00038356,7]
[314010638,1707923500406,-1511.05,0.00038356,7]
[314010639,1707923500416,-500.0,0.00038356,7]
[314010640,1707923500425,-6267.83,0.00038356,7]
[314010641,1707923500435,-879.95,0.00038356,7]
[314010642,1707923500445,-2830.38,0.00038356,7]
[314010643,1707923500455,-763.78,0.00038356,7]
[314010644,1707923500465,-626.07,0.00038356,7]
[314010645,1707923500475,-1371.91,0.00038356,7]
[314010646,1707923500485,-500.0,0.00038356,7]
[314010647,1707923500495,-4425.6,0.00038356,7]
[314010648,1707923500505,-323.57907413,0.00038356,7]
[314010649,1707923500514,-986.33,0.00038356,7]
[314010650,1707923500524,-500.0,0.00038356,7]
[314010651,1707923500534,-500.0,0.00038356,7]
[314010652,1707923500544,-45639.2,0.00038356,7]
[314010653,1707923500553,-5389.09,0.00038356,7]
[314010654,1707923500563,-1240.03,0.00038356,7]
[314010655,1707923500573,-4636.49,0.00038356,7]
[314010656,1707923500583,-500.0,0.00038356,7]
[314010657,1707923500593,-558.68,0.00038356,7]
[314010658,1707923500603,-500.0,0.00038356,7]
[314010659,1707923500614,-5227.83,0.00038356,7]
[314010660,1707923500623,-525.56,0.00038356,7]
[314010661,1707923500634,-2461.93,0.00038356,7]
[314010662,1707923500645,-1060.11,0.00038356,7]
[314010663,1707923500655,-682.43,0.00038356,7]
[314010664,1707923500665,-1031.1,0.00038356,7]
[314010665,1707923500675,-3757.3,0.00038356,7]
[314010666,1707923500685,-741.06,0.00038356,7]
[314010667,1707923500695,-777.41,0.00038356,7]
[314010668,1707923500705,-500.0,0.00038356,7]
[314010669,1707923500715,-838.79,0.00038356,7]
[314010670,1707923500724,-1479.6,0.00038356,7]
[314010671,1707923500734,-866.09,0.00038356,7]
[314010672,1707923500743,-8419.92,0.00038356,7]
[314010673,1707923500753,-3315.92,0.00038356,7]
[314010674,1707923500763,-1669.6,0.00038356,7]
[314010675,1707923500773,-500.0,0.00038356,7]
[314010676,1707923500783,-530.90386692,0.00038356,7]
[314010677,1707923500793,-500.0,0.00038356,7]
[314010678,1707923500803,-1425.19,0.00038356,7]
[314010679,1707923500813,-500.0,0.00038356,7]
[314010680,1707923500823,-941.92,0.00038356,7]
[314010681,1707923500832,-500.0,0.00038356,7]
[314010682,1707923500842,-1068.3,0.00038356,7]
[314010683,1707923500852,-978.39,0.00038356,7]
[314010684,1707923500862,-1743.01,0.00038356,7]
[314010685,1707923500874,-500.0,0.00038356,7]
[314010686,1707923500885,-527.53,0.00038356,7]
[314010687,1707923500900,-5014.41,0.00038356,7]
[314010688,1707923500911,-2618.16,0.00038356,7]
[314010689,1707923500922,-16404.96,0.00038356,7]
[314010690,1707923500933,-1253.74,0.00038356,7]
[314010691,1707923500944,-1428.29,0.00038356,7]
[314010692,1707923500955,-12919.21,0.00038356,7]
[314010693,1707923500971,-500.0,0.00038356,7]
[314010694,1707923500981,-725.51,0.00038356,7]
[314010695,1707923500992,-670.32,0.00038356,7]
[314010696,1707923501002,-564.17,0.00038356,7]
[314010697,1707923501013,-500.0,0.00038356,7]
[314010698,1707923501023,-608.21,0.00038356,7]
[314010699,1707923501034,-1250.0,0.00038356,2]
[314010700,1707923501045,-3982.22,0.00038356,7]
[314010701,1707923501055,-500.0,0.00038356,7]
[314010702,1707923501065,-15886.12,0.00038356,7]
[314010703,1707923501076,-1912.2,0.00038356,7]
[314010704,1707923501086,-2165.63247201,0.00038356,7]
[314010705,1707923501096,-2293.57,0.00038356,7]
[314010706,1707923501106,-1078.52,0.00038356,7]
[314010707,1707923501116,-500.0,0.00038356,7]
[314010708,1707923501126,-1675.86,0.00038356,7]
[314010709,1707923501137,-4682.24,0.00038356,7]
[314010710,1707923501152,-998.25,0.00038356,7]
[314010711,1707923501164,-1548.99,0.00038356,7]
[314010712,1707923501477,-500.0,0.00038356,7]
[314010713,1707923501503,-2172.47,0.00038356,7]
[314010714,1707923501513,-1678.3,0.00038356,7]
[314010715,1707923501523,-500.0,0.00038356,7]
[314010716,1707923501532,-4636.94,0.00038356,7]
[314010717,1707923501542,-500.0,0.00038356,7]
[314010718,1707923501552,-905.58,0.00038356,7]
[314010719,1707923501563,-3347.59,0.00038356,7]
[314010720,1707923501572,-24853.72,0.00038356,7]
[314010721,1707923501582,-2682.03,0.00038356,7]
[314010722,1707923501591,-500.0,0.00038356,7]
[314010723,1707923501600,-500.0,0.00038356,7]
[314010724,1707923501609,-741.23,0.00038356,7]
[314010725,1707923501622,-4661.42,0.00038356,7]
[314010726,1707923501631,-504.17,0.00038356,7]
[314010727,1707923501644,-644.02,0.00038356,7]
[314010728,1707923501655,-1447.91,0.00038356,7]
[314010729,1707923501663,-870.17,0.00038356,7]
[314010730,1707923501673,-6063.47,0.00038356,7]
[314010731,1707923501682,-575.73,0.00038356,2]
[314010732,1707923501691,-513.51,0.00038356,7]
[314010733,1707923501701,-500.0,0.00038356,7]
[314010734,1707923501710,-13772.64,0.00038356,7]
[314010735,1707923501719,-861.53,0.00038356,7]
[314010736,1707923501729,-734.67,0.00038356,7]
[314010737,1707923501738,-4015.51,0.00038356,7]
[314010738,1707923501747,-4963.65,0.00038356,7]
[314010739,1707923501756,-1647.66,0.00038356,7]
[314010740,1707923501765,-500.0,0.00038356,7]
[314010741,1707923501775,-834.17,0.00038356,7]
[314010742,1707923501784,-1651.62,0.00038356,7]
[314010743,1707923501793,-1367.71,0.00038356,7]
[314010744,1707923501803,-705.01,0.00038356,7]
[314010745,1707923501812,-738.43,0.00038356,7]
[314010746,1707923501821,-500.0,0.00038356,7]
[314010747,1707923501830,-1232.76,0.00038356,7]
[314010748,1707923501839,-1605.94,0.00038356,7]
[314010749,1707923501848,-1397.98,0.00038356,7]
[314010750,1707923501857,-2624.93,0.00038356,7]
[314010751,1707923501867,-3882.2,0.00038356,7]
[314010752,1707923501875,-6303.05,0.00038356,7]
[314010753,1707923501884,-1424.26,0.00038356,7]
[314010754,1707923501896,-6722.84,0.00038356,7]
[314010755,1707923501907,-6796.38,0.00038356,7]
[314010756,1707923501917,-500.0,0.00038356,7]
[314010757,1707923501928,-9115.46,0.00038356,7]
[314010758,1707923501938,-1430.04,0.00038356,7]
[314010759,1707923501948,-500.0,0.00038356,7]
[314010760,1707923501958,-876.71,0.00038356,7]
[314010761,1707923501972,-1566.04,0.00038356,7]
[314010762,1707923501981,-1159.69,0.00038356,7]
[314010763,1707923501991,-5625.73,0.00038356,7]
[314010764,1707923502002,-742.15,0.00038356,7]
[314010765,1707923502012,-500.0,0.00038356,7]
[314010766,1707923502023,-1074.84,0.00038356,7]
[314010767,1707923502033,-500.0,0.00038356,7]
[314010768,1707923502045,-21955.42,0.00038356,7]
[314010769,1707923502055,-1224.55,0.00038356,7]
[314010770,1707923502064,-10536.73,0.00038356,7]
[314010771,1707923502073,-3349.17,0.00038356,7]
[314010772,1707923502082,-4103.23,0.00038356,7]
[314010773,1707923502092,-1141.82,0.00038356,7]
[314010774,1707923502102,-15646.43,0.00038356,7]
[314010775,1707923502111,-500.0,0.00038356,7]
[314010776,1707923502120,-580.0,0.00038356,7]
[314010777,1707923502130,-888.9,0.00038356,7]
[314010778,1707923502139,-849.7,0.00038356,7]
[314010779,1707923502152,-1131.16,0.00038356,7]
[314010780,1707923502161,-500.0,0.00038356,7]
[314010781,1707923502171,-500.0,0.00038356,7]
[314010782,1707923502181,-1000.0,0.00038356,30]
[314010783,1707923502190,-1000.0,0.00038356,30]
[314010784,1707923502200,-1000.0,0.00038356,30]
[314010785,1707923502213,-970.39,0.00038356,7]
[314010786,1707923502222,-1000.0,0.00038356,30]
[314010787,1707923502232,-1000.0,0.00038356,30]
[314010788,1707923502241,-2458.64,0.00038356,7]
[314010789,1707923502254,-1000.0,0.00038356,30]
[314010790,1707923502264,-1000.0,0.00038356,30]
[314010791,1707923502275,-1032.81,0.00038356,7]
[314010792,1707923502284,-940.22,0.00038356,7]
[314010793,1707923502294,-845.63,0.00038356,7]
[314010794,1707923502304,-655.93,0.00038356,7]
[314010795,1707923502315,-2020.71,0.00038356,7]
[314010796,1707923502325,-861.05,0.00038356,7]
[314010797,1707923502334,-1868.07,0.00038356,7]
[314010798,1707923502343,-4353.77,0.00038356,7]
[314010799,1707923502353,-500.0,0.00038356,7]
[314010800,1707923502363,-2136.24,0.00038356,7]
[314010801,1707923502372,-500.0,0.00038356,7]
[314010802,1707923502382,-3468.32,0.00038356,7]
[314010803,1707923502393,-1175.69,0.00038356,7]
[314010804,1707923502402,-4307.44,0.00038356,7]
[314010805,1707923502412,-500.0,0.00038356,7]
[314010806,1707923502422,-2131.96,0.00038356,7]
[314010807,1707923502432,-4133.28,0.00038356,7]
[314010808,1707923502443,-500.0,0.00038356,7]
[314010809,1707923502452,-3754.14,0.00038356,7]
[314010810,1707923502461,-1200.28,0.00038356,7]
[314010811,1707923502470,-1293.93,0.00038356,7]
[314010812,1707923502479,-2643.73,0.00038356,7]
[314010813,1707923502488,-551.94,0.00038356,7]
[314010814,1707923502497,-1428.62,0.00038356,7]
[314010815,1707923502507,-4255.94,0.00038356,7]
[314010816,1707923502516,-500.0,0.00038356,7]
[314010817,1707923502526,-500.0,0.00038356,7]
[314010818,1707923502536,-1073.43,0.00038356,7]
[314010819,1707923502545,-1154.7,0.00038356,7]
[314010820,1707923502555,-500.0,0.00038356,7]
[314010821,1707923502564,-749.27,0.00038356,7]
[314010822,1707923502573,-1681.08,0.00038356,7]
[314010823,1707923502583,-696.07,0.00038356,7]
[314010824,1707923502593,-1960.66,0.00038356,7]
[314010825,1707923502603,-4598.11,0.00038356,7]
[314010826,1707923502613,-1992.67,0.00038356,7]
[314010827,1707923502623,-2148.61,0.00038356,7]
[314010828,1707923502632,-776.5,0.00038356,7]
[314010829,1707923502644,-876.47,0.00038356,7]
[314010830,1707923502655,-907.63,0.00038356,7]
[314010831,1707923502664,-759.83,0.00038356,7]
[314010832,1707923502674,-1863.83,0.00038356,7]
[314010833,1707923502684,-2233.48,0.00038356,7]
[314010834,1707923502694,-22229.37,0.00038356,7]
[314010835,1707923502704,-500.0,0.00038356,7]
[314010836,1707923502714,-2807.7,0.00038356,7]
[314010837,1707923502724,-1407.78,0.00038356,7]
[314010838,1707923502734,-500.0,0.00038356,7]
[314010839,1707923502743,-4409.87,0.00038356,7]
[314010840,1707923502752,-770.43,0.00038356,7]
[314010841,1707923502762,-749.48,0.00038356,7]
[314010842,1707923502772,-500.0,0.00038356,7]
[314010843,1707923502782,-940.66,0.00038356,7]
[314010844,1707923502792,-1582.96,0.00038356,7]
[314010845,1707923502801,-778.24,0.00038356,7]
[314010846,1707923502811,-819.98,0.00038356,7]
[314010847,1707923502821,-500.0,0.00038356,7]
[314010848,1707923502831,-501.61,0.00038356,7]
[314010849,1707923502840,-1689.02,0.00038356,7]
[314010850,1707923502850,-500.0,0.00038356,13]
[314010851,1707923502859,-500.0,0.00038356,13]
[314010852,1707923502869,-500.0,0.00038356,13]
[314010853,1707923502879,-500.0,0.00038356,13]
[314010854,1707923502890,-500.0,0.00038356,13]
[314010855,1707923502901,-500.0,0.00038356,13]
[314010856,1707923502911,-500.0,0.00038356,13]
[314010857,1707923502920,-500.0,0.00038356,13]
[314010858,1707923502930,-500.0,0.00038356,13]
[314010859,1707923502939,-500.0,0.00038356,13]
[314010860,1707923502948,-500.0,0.00038356,13]
[314010861,1707923502957,-500.0,0.00038356,13]
[314010862,1707923502969,-500.0,0.00038356,13]
[314010863,1707923502979,-500.0,0.00038356,13]
[314010864,1707923502989,-500.0,0.00038356,13]
[314010865,1707923503001,-500.0,0.00038356,13]
[314010866,1707923503012,-500.0,0.00038356,13]
[314010867,1707923503022,-500.0,0.00038356,13]
[314010868,1707923503032,-500.0,0.00038356,13]
[314010869,1707923503043,-500.0,0.00038356,13]
[314010870,1707923503054,-500.0,0.00038356,13]
[314010871,1707923503064,-500.0,0.00038356,13]
[314010872,1707923503076,-500.0,0.00038356,13]
[314010873,1707923503087,-500.0,0.00038356,13]
[314010874,1707923503097,-500.0,0.00038356,13]
[314010875,1707923503107,-500.0,0.00038356,13]
[314010876,1707923503117,-500.0,0.00038356,13]
[314010877,1707923503128,-500.0,0.00038356,13]
[314010878,1707923503137,-500.0,0.00038356,13]
[314010879,1707923503149,-500.0,0.00038356,13]
[314010880,1707923503158,-500.0,0.00038356,13]
[314010881,1707923503168,-500.0,0.00038356,13]
[314010882,1707923503177,-500.0,0.00038356,13]
[314010883,1707923503186,-500.0,0.00038356,13]
[314010884,1707923503196,-500.0,0.00038356,13]
[314010885,1707923503206,-500.0,0.00038356,13]
[314010886,1707923503215,-500.0,0.00038356,13]
[314010887,1707923503225,-500.0,0.00038356,13]
[314010888,1707923503235,-500.0,0.00038356,13]
[314010889,1707923503244,-500.0,0.00038356,13]
[314010890,1707923503254,-500.0,0.00038356,13]
[314010891,1707923503264,-500.0,0.00038356,13]
[314010892,1707923503274,-500.0,0.00038356,13]
[314010893,1707923503284,-500.0,0.00038356,13]
[314010894,1707923503294,-500.0,0.00038356,13]
[314010895,1707923503304,-500.0,0.00038356,13]
[314010896,1707923503316,-500.0,0.00038356,13]
[314010897,1707923503327,-500.0,0.00038356,13]
[314010898,1707923503337,-500.0,0.00038356,13]
[314010899,1707923503346,-500.0,0.00038356,13]
[314010900,1707923503356,-500.0,0.00038356,13]
[314010901,1707923503366,-500.0,0.00038356,13]
[314010902,1707923503375,-500.0,0.00038356,13]
[314010903,1707923503384,-500.0,0.00038356,13]
[314010904,1707923503397,-500.0,0.00038356,13]
[314010905,1707923503407,-500.0,0.00038356,13]
[314010906,1707923503417,-500.0,0.00038356,13]
[314010907,1707923503426,-500.0,0.00038356,13]
[314010908,1707923503435,-624.0,0.00038356,13]
[314010909,1707923503444,-151.0,0.00038356,7]
[314010910,1707923503453,-151.0,0.00038356,7]
[314010911,1707923503463,-151.0,0.00038356,7]
[314010912,1707923503473,-502.433236,0.00038356,2]
[314010913,1707923503485,-502.433236,0.00038356,2]
[314010914,1707923503496,-502.433236,0.00038356,2]
[314010915,1707923503506,-502.433236,0.00038356,2]
[314010916,1707923503517,-502.433236,0.00038356,2]
[314010917,1707923503528,-502.433236,0.00038356,2]
[314010918,1707923503539,-502.433236,0.00038356,2]
[314010919,1707923503549,-502.433236,0.00038356,2]
[314010920,1707923503560,-502.433236,0.00038356,2]
[314010921,1707923503570,-502.433236,0.00038356,2]
[314010922,1707923503579,-502.433236,0.00038356,2]
[314010923,1707923503589,-502.433236,0.00038356,2]
[314010924,1707923503598,-502.433236,0.00038356,2]
[314010925,1707923503608,-502.433236,0.00038356,2]
[314010926,1707923503618,-502.433236,0.00038356,2]
[314010927,1707923503627,-502.433236,0.00038356,2]
[314010928,1707923503636,-502.433236,0.00038356,2]
[314010929,1707923503651,-502.433236,0.00038356,2]
[314010930,1707923503661,-502.433236,0.00038356,2]
[314010931,1707923503670,-502.433246,0.00038356,2]
[314010932,1707923503679,-151.0,0.00038356,2]
[314010933,1707923503690,-151.0,0.00038356,2]
[314010934,1707923503700,-151.0,0.00038356,2]
[314010935,1707923503709,-151.0,0.00038356,2]
[314010936,1707923503719,-151.0,0.00038356,2]
[314010937,1707923503728,-151.0,0.00038356,2]
[314010938,1707923503738,-151.0,0.00038356,2]
[314010939,1707923503747,-151.0,0.00038356,2]
[314010940,1707923503756,-158.94204,0.00038356,2]
[314010941,1707923503766,-153.353121,0.00038356,7]
[314010942,1707923503776,-153.353121,0.00038356,7]
[314010943,1707923503786,-153.353121,0.00038356,7]
[314010944,1707923503795,-153.353121,0.00038356,7]
[314010945,1707923503805,-153.353121,0.00038356,7]
[314010946,1707923503876,-153.353121,0.00038356,7]
[314010947,1707923503886,-153.353121,0.00038356,7]
[314010948,1707923503899,-153.353121,0.00038356,7]
[314010949,1707923503908,-153.353121,0.00038356,7]
[314010950,1707923503918,-153.353121,0.00038356,7]
[314010951,1707923503927,-153.353121,0.00038356,7]
[314010952,1707923503936,-153.353121,0.00038356,7]
[314010953,1707923503945,-421.94,0.00038356,2]
[314010954,1707923503954,-151.11,0.00038356,2]
[314010955,1707923503964,-411.76,0.00038356,2]
[314010956,1707923503973,-418.61,0.00038356,2]
[314010957,1707923503983,-150.0,0.00038356,2]
[314010958,1707923503992,-150.0,0.00038356,2]
[314010959,1707923504004,-343.2,0.00038356,2]
[314010960,1707923504013,-411.76,0.00038356,2]
[314010961,1707923504022,-343.2,0.00038356,2]
[314010962,1707923504032,-418.61,0.00038356,2]
[314010963,1707923504041,-411.76,0.00038356,2]
[314010964,1707923504050,-150.0,0.00038356,2]
[314010965,1707923504060,-343.2,0.00038356,2]
[314010966,1707923504069,-150.0,0.00038356,2]
[314010967,1707923504079,-418.61,0.00038356,2]
[314010968,1707923504089,-150.0,0.00038356,2]
[314010969,1707923504098,-150.0,0.00038356,2]
[314010970,1707923504107,-150.0,0.00038356,2]
[314010971,1707923504116,-150.0,0.00038356,2]
[314010972,1707923504127,-150.0,0.00038356,2]
[314010973,1707923504136,-150.0,0.00038356,2]
[314010974,1707923504148,-167.18,0.00038356,2]
[314010975,1707923504157,-312.47,0.00038356,2]
[314010976,1707923504167,-179.09,0.00038356,2]
[314010977,1707923504176,-421.94,0.00038356,2]
[314010978,1707923504185,-411.76,0.00038356,2]
[314010979,1707923504194,-418.61,0.00038356,2]
[314010980,1707923504203,-150.0,0.00038356,2]
[314010981,1707923504213,-343.2,0.00038356,2]
[314010982,1707923504222,-418.61,0.00038356,2]
[314010983,1707923504231,-411.76,0.00038356,2]
[314010984,1707923504240,-411.76,0.00038356,2]
[314010985,1707923504249,-418.61,0.00038356,2]
[314010986,1707923504258,-343.2,0.00038356,2]
[314010987,1707923504267,-418.61,0.00038356,2]
[314010988,1707923504278,-409.48,0.00038356,2]
[314010989,1707923504287,-339.62,0.00038356,2]
[314010990,1707923504297,-383.09869722,0.0003836,7]
[314010991,1707923504307,-383.09869722,0.0003836,7]
[314010992,1707923504316,-383.09869722,0.0003836,7]
[314010993,1707923504326,-383.09869722,0.0003836,7]
[314010994,1707923504336,-383.09869722,0.0003836,7]
[314010995,1707923504346,-383.09869722,0.0003836,7]
[314010996,1707923504355,-383.09869722,0.0003836,7]
[314010997,1707923504365,-383.09869722,0.0003836,7]
[314010998,1707923504375,-383.09869722,0.0003836,7]
[314010999,1707923504384,-383.09869722,0.0003836,7]
[314011000,1707923504398,-383.09869722,0.0003836,7]
[314011001,1707923504407,-383.09869722,0.0003836,7]
[314011002,1707923504416,-383.09869722,0.0003836,7]
[314011003,1707923504426,-383.09869722,0.0003836,7]
[314011004,1707923504436,-383.09869722,0.0003836,7]
[314011005,1707923504444,-383.09869722,0.0003836,7]
[314011006,1707923504454,-383.09869722,0.0003836,7]
[314011007,1707923504463,-383.09869722,0.0003836,7]
[314011008,1707923504473,-383.09869722,0.0003836,7]
[314011009,1707923504482,-383.09,0.0003836,7]
[314011010,1707923504491,-1532.39478887,0.0003836,7]
[314011011,1707923504499,-1532.39478887,0.0003836,7]
[314011012,1707923504509,-1532.39478887,0.0003836,7]
[314011013,1707923504518,-1532.39478887,0.0003836,7]
[314011014,1707923504527,-1532.39478887,0.0003836,7]
[314011015,1707923504535,-1532.39478887,0.0003836,7]
[314011016,1707923504544,-1532.39478887,0.0003836,7]
[314011017,1707923504553,-157.79616495,0.0003836,7]
[314011018,1707923504563,-157.79616495,0.0003836,7]
[314011019,1707923504572,-157.79616495,0.0003836,7]
[314011020,1707923504582,-157.79616495,0.0003836,7]
[314011021,1707923504591,-157.79616495,0.0003836,7]
[314011022,1707923504600,-157.79616495,0.0003836,7]
[314011023,1707923504609,-157.79616495,0.0003836,7]
[314011024,1707923504619,-157.79616495,0.0003836,7]
[314011025,1707923504629,-157.79616495,0.0003836,7]
[314011026,1707923504639,-157.79616495,0.0003836,7]
[314011027,1707923504655,-157.79616495,0.0003836,7]
[314011028,1707923504666,-157.79616495,0.0003836,7]
[314011029,1707923504675,-157.79616495,0.0003836,7]
[314011030,1707923504685,-157.79616495,0.0003836,7]
[314011031,1707923504694,-157.79616495,0.0003836,7]
[314011032,1707923504704,-157.79616495,0.0003836,7]
[314011033,1707923504714,-157.79616495,0.0003836,7]
[314011034,1707923504723,-157.79616495,0.0003836,7]
[314011035,1707923504733,-157.79616495,0.0003836,7]
[314011036,1707923504742,-157.79,0.0003836,7]
[314011037,1707923504753,-631.18465979,0.0003836,7]
[314011038,1707923504764,-631.18465979,0.0003836,7]
[314011039,1707923504773,-631.18465979,0.0003836,7]
[314011040,1707923504783,-631.18465979,0.0003836,7]
[314011041,1707923504792,-631.18465979,0.0003836,7]
[314011042,1707923504801,-631.18465979,0.0003836,7]
[314011043,1707923504810,-631.18465979,0.0003836,7]
[314011044,1707923504820,-249.04866489,0.0003836,7]
[314011045,1707923504830,-249.04866489,0.0003836,7]
[314011046,1707923504839,-249.04866489,0.0003836,7]
[314011047,1707923504850,-249.04866489,0.0003836,7]
[314011048,1707923504860,-249.04866489,0.0003836,7]
[314011049,1707923504869,-249.04866489,0.0003836,7]
[314011050,1707923504879,-249.04866489,0.0003836,7]
[314011051,1707923504891,-249.04866489,0.0003836,7]
[314011052,1707923504904,-249.04866489,0.0003836,7]
[314011053,1707923504915,-249.04866489,0.0003836,7]
[314011054,1707923504925,-249.04866489,0.0003836,7]
[314011055,1707923504936,-249.04866489,0.0003836,7]
[314011056,1707923504946,-249.04866489,0.0003836,7]
[314011057,1707923504957,-249.04866489,0.0003836,7]
[314011058,1707923504969,-249.04866489,0.0003836,7]
[314011059,1707923504978,-249.04866489,0.0003836,7]
[314011060,1707923504988,-249.04866489,0.0003836,7]
[314011061,1707923504998,-249.04866489,0.0003836,7]
[314011062,1707923505010,-249.04866489,0.0003836,7]
[314011063,1707923505019,-249.04,0.0003836,7]
[314011064,1707923505028,-996.19465956,0.0003836,7]
[314011065,1707923505038,-996.19465956,0.0003836,7]
[314011066,1707923505049,-996.19465956,0.0003836,7]
[314011067,1707923505058,-996.19465956,0.0003836,7]
[314011068,1707923505068,-996.19465956,0.0003836,7]
[314011069,1707923505077,-996.19465956,0.0003836,7]
[314011070,1707923505087,-996.19465956,0.0003836,7]
[314011071,1707923505097,-305.60397931,0.0003836,7]
[314011072,1707923505107,-305.60397931,0.0003836,7]
[314011073,1707923505118,-305.60397931,0.0003836,7]
[314011074,1707923505127,-305.60397931,0.0003836,7]
[314011075,1707923505137,-305.60397931,0.0003836,7]
[314011076,1707923505149,-305.60397931,0.0003836,7]
[314011077,1707923505159,-305.60397931,0.0003836,7]
[314011078,1707923505168,-305.60397931,0.0003836,7]
[314011079,1707923505177,-305.60397931,0.0003836,7]
[314011080,1707923505186,-305.60397931,0.0003836,7]
[314011081,1707923505196,-305.60397931,0.0003836,7]
[314011082,1707923505205,-305.60397931,0.0003836,7]
[314011083,1707923505214,-305.60397931,0.0003836,7]
[314011084,1707923505224,-305.60397931,0.0003836,7]
[314011085,1707923505233,-305.60397931,0.0003836,7]
[314011086,1707923505243,-305.60397931,0.0003836,7]
[314011087,1707923505252,-305.60397931,0.0003836,7]
[314011088,1707923505261,-305.60397931,0.0003836,7]
[314011089,1707923505270,-305.60397931,0.0003836,7]
[314011090,1707923505280,-305.6,0.0003836,7]
[314011091,1707923505289,-1222.41591722,0.0003836,7]
[314011092,1707923505298,-1222.41591722,0.0003836,7]
[314011093,1707923505308,-1222.41591722,0.0003836,7]
[314011094,1707923505320,-1222.41591722,0.0003836,7]
[314011095,1707923505329,-1222.41591722,0.0003836,7]
[314011096,1707923505339,-1222.41591722,0.0003836,7]
[314011097,1707923505348,-1222.41591722,0.0003836,7]
[314011098,1707923505357,-280.01668385,0.0003836,7]
[314011099,1707923505367,-280.01668385,0.0003836,7]
[314011100,1707923505377,-280.01668385,0.0003836,7]
[314011101,1707923505386,-280.01668385,0.0003836,7]
[314011102,1707923505400,-280.01668385,0.0003836,7]
[314011103,1707923505409,-280.01668385,0.0003836,7]
[314011104,1707923505419,-280.01668385,0.0003836,7]
[314011105,1707923505428,-280.01668385,0.0003836,7]
[314011106,1707923505438,-280.01668385,0.0003836,7]
[314011107,1707923505448,-280.01668385,0.0003836,7]
[314011108,1707923505458,-280.01668385,0.0003836,7]
[314011109,1707923505467,-280.01668385,0.0003836,7]
[314011110,1707923505477,-280.01668385,0.0003836,7]
[314011111,1707923505487,-280.01668385,0.0003836,7]
[314011112,1707923505497,-280.01668385,0.0003836,7]
[314011113,1707923505507,-280.01668385,0.0003836,7]
[314011114,1707923505516,-280.01668385,0.0003836,7]
[314011115,1707923505526,-280.01668385,0.0003836,7]
[314011116,1707923505535,-280.01668385,0.0003836,7]
[314011117,1707923505544,-280.01,0.0003836,7]
[314011118,1707923505554,-1120.06673539,0.0003836,7]
[314011119,1707923505564,-1120.06673539,0.0003836,7]
[314011120,1707923505573,-1120.06673539,0.0003836,7]
[314011121,1707923505582,-1120.06673539,0.0003836,7]
[314011122,1707923505591,-1120.06673539,0.0003836,7]
[314011123,1707923505601,-1120.06673539,0.0003836,7]
[314011124,1707923505610,-1120.06673539,0.0003836,7]
[314011125,1707923505619,-151.40277149,0.00038375,2]
[314011126,1707923505629,-500.0,0.00038378,7]
[314011127,1707923505638,-158.81842538,0.00038379,2]
[314011128,1707923505650,-3312.13,0.000384,7]
[314011129,1707923505660,-2000.0,0.000384,2]
[314011130,1707923505669,-1000.0,0.000384,2]
[314011131,1707923505679,-4000.0,0.000384,2]
[314011132,1707923505689,-150.0,0.00038413,2]
[314011133,1707923505699,-150.0,0.00038425,2]
[314011134,1707923505709,-155.0,0.0003844,2]